Workbook

Sheet приложение 1.2. от 28.02.2017
Y2: Приложение № 1.2
Y3: к приказу Минэнерго России
Y4: от «24» марта 2010 г. № 114
A6: Стоимость основных этапов работ по реализации инвестиционной программы АО "Самарская сетевая компания" на 2018 год
X8: Утверждаю
U9: Генеральный директор АО " ССК"
V10: Мухаметшин В.С.
W11: _____________
T12: «___»______________ 2017 год
X13: М.П.
A15: № | B15: Наименование объекта* | C15: Технические характеристики реконструируемых объектов | L15: Плановый объем финансирования, млн. руб.(с НДС) | Q15: Технические характеристики созданных объектов
C16: Подстанции | G16: Линии электропередачи | Q16: Подстанции | U16: Линии электропередачи
C17: год ввода в эксплуатацию | D17: Нормативный срок службы, лет | E17: Количество и марка силовых трансформаторов, шт | F17: Мощность, МВА | G17: год ввода в эксплуа-тацию | H17: Нормативный срок службы, лет | I17: Тип опор | J17: Марка кабеля | K17: протяженность, км | L17: Всего | M17: ПИР | N17: СМР | O17: оборудование и материалы | P17: прочие | Q17: год ввода в эксплуатацию | R17: Нормативный срок службы, лет | S17: Количество и марка силовых трансформаторов, шт | T17: Мощность, МВА | U17: год ввода в эксплуа-тацию | V17: Нормативный срок службы, лет | W17: Тип опор | X17: Марка кабеля | Y17: протяженность, км
A18: 1 | B18: 2 | C18: 3 | D18: 4 | E18: 5 | F18: 6 | G18: 7 | H18: 8 | I18: 9 | J18: 10 | K18: 11 | L18: 12 | M18: 13 | N18: 14 | O18: 15 | P18: 16 | Q18: 17 | R18: 18 | S18: 19 | T18: 20 | U18: 21 | V18: 22 | W18: 23 | X18: 24 | Y18: 25
B19: ВСЕГО | F19: =F20+F270 -> 39.5 | K19: =K20+K270 -> 414.344502 | L19: 2855.129154 | M19: 240.0129154 | N19: 2261.116239 | O19: 354 | P19: 0 | T19: =T20+T270 -> 113.723 | Y19: =Y20+Y270 -> 458.044502 | Z19: 2018
A20: 1 | B20: Техническое перевооружение и реконструкция | F20: =F21 -> 39.5 | K20: =SUM(K22:K256) -> 414.344502 | L20: =SUM(L22:L256) -> 2695.308754 | M20: =SUM(M22:M256) -> 224.0308754 | N20: =SUM(N22:N256) -> 2117.277879 | O20: =SUM(O22:O256) -> 354 | T20: =T21 -> 106.893 | Y20: =Y21 -> 414.344502 | Z20: Без НДС
A21: 1.1. | B21: Энергосбережение и повышение энергетической эффективности | F21: =SUM(F23:F256) -> 39.5 | K21: =SUM(K23:K255) -> 414.344502 | L21: =SUM(L23:L255) -> 2341.308754 | M21: =SUM(M23:M255) -> 224.0308754 | N21: =SUM(N23:N255) -> 2117.277879 | O21: =SUM(O23:O255) -> 0 | P21: =SUM(P23:P256) -> 0 | S21: =SUM(S23:S256) -> 0 | T21: =SUM(T23:T256) -> 106.893 | W21: =SUM(W23:W256) -> 0 | X21: =SUM(X23:X256) -> 0 | Y21: =SUM(Y23:Y256) -> 414.344502 | Z21: =SUM(Z23:Z256) -> 2284.159961 | AA21: 2284.16 | AB21: =AA21-Z21 -> 3.881355906e-05
A22: 1 | B22: Алексеевский район
A23: 2 | B23: Реконструкция ВЛ-0,4кВ от КТП А 207/250 кВА с заменой КТП | D23: 25 | E23: ТМ-250 | F23: 0.25 | H23: 16.27 | I23: Д, ЖБД | J23: А, АС | K23: 1.92 | L23: =K23*3.2+1.3 -> 7.444 | M23: =L23*0.1 -> 0.7444 | N23: =L23-(M23+O23) -> 6.6996 | Q23: 2018 | R23: 33 | S23: ТМГ-250 | T23: 0.25 | U23: 2018 | V23: 35 | W23: СВ-95 | X23: СИП | Y23: =K23 -> 1.92 | Z23: =L23/1.18 -> 6.308474576
A24: 3 | B24: Реконструкция ВЛ-0,4кВ от КТП А 203/250 кВА с заменой КТП | D24: 25 | E24: ТМ-250 | F24: 0.25 | H24: 16.27 | I24: Д, ЖБД | J24: А, АС | K24: 4.67 | L24: =K24*3.2+1.3 -> 16.244 | M24: =L24*0.1 -> 1.6244 | N24: 14.6196 | Q24: 2018 | R24: 33 | S24: ТМГ-250 | T24: 0.25 | U24: 2018 | V24: 35 | W24: СВ-95 | X24: СИП | Y24: =K24 -> 4.67 | Z24: =L24/1.18 -> 13.76610169
A25: 4 | B25: Безенчукский район | M25: 0 | N25: 0 | Y25: 0 | Z25: 0
A26: 5 | B26: Реконструкция КТП Бзч 604/400 кВА | D26: 25 | E26: ТМ-400 | F26: 0.4 | L26: 1.6 | M26: 0.16 | N26: 1.44 | Q26: 2018 | R26: 33 | S26: ТМГ-400 | T26: 0.4 | Z26: 1.355932203
A27: 6 | B27: Реконструкция КТП Сн 712/400 кВА | D27: 25 | E27: ТМ-400 | F27: 0.4 | L27: 1.6 | M27: 0.16 | N27: 1.44 | Q27: 2018 | R27: 33 | S27: ТМГ-400 | T27: 0.4 | Z27: 1.355932203
A28: 7 | B28: Реконструкция ВЛ-0,4 кВ от ЗТП Пер 808/250 кВА с заменой кабельного выхода КЛ-0,4 кВ и с заменой щитов одностороннего обслуживания ЩО-70 | H28: 16.27 | I28: Д, ЖБД | J28: А, АС | K28: 0.7 | L28: 3.54 | M28: 0.354 | N28: 3.186 | U28: 2018 | V28: 35 | W28: СВ-95 | X28: СИП | Y28: 0.7 | Z28: 3
A29: 8 | B29: Большеглушицкий район | M29: 0 | N29: 0 | Y29: 0 | Z29: 0
A30: 9 | B30: Реконструкция ВЛ-0,4 кВ от КТП 217/160 кВА с заменой КТП | D30: 25 | E30: ТМ-160 | F30: 0.16 | H30: 16.27 | I30: Д, ЖБД | J30: А, АС | K30: 1.52 | L30: =K30*3.2+1.3 -> 6.164 | M30: 0.6164 | N30: 5.5476 | Q30: 2018 | R30: 33 | S30: ТМГ-160 | T30: 0.16 | U30: 2018 | V30: 35 | W30: СВ-95 | X30: СИП | Y30: 1.52 | Z30: 5.223728814
A31: 10 | B31: Реконструкция ВЛ-0,4 кВ от КТП 1917/250 кВА с заменой КТП | D31: 25 | E31: ТМ-250 | F31: 0.25 | H31: 16.27 | I31: Д, ЖБД | J31: А, АС | K31: 0.836 | L31: 3.9752 | M31: 0.39752 | N31: 3.57768 | Q31: 2018 | R31: 33 | S31: ТМГ-250 | T31: 0.25 | U31: 2018 | V31: 35 | W31: СВ-95 | X31: СИП | Y31: 0.836 | Z31: 3.368813559
A32: 11 | B32: Реконструкция ВЛ-0,4 кВ от КТП 128/250 кВА с заменой КТП | D32: 25 | E32: ТМ-250 | F32: 0.25 | H32: 16.27 | I32: Д, ЖБД | J32: А, АС | K32: 1.826 | L32: 7.1432 | M32: 0.71432 | N32: 6.42888 | Q32: 2018 | R32: 33 | S32: ТМГ-250 | T32: 0.25 | U32: 2018 | V32: 35 | W32: СВ-95 | X32: СИП | Y32: 1.826 | Z32: 6.053559322
A33: 12 | B33: Реконструкция ВЛ-0,4 кВ от КТП 125/250 кВА с заменой КТП | D33: 25 | E33: ТМ-250 | F33: 0.25 | H33: 16.27 | I33: Д, ЖБД | J33: А, АС | K33: 0.28 | L33: 2.196 | M33: 0.2196 | N33: 1.9764 | Q33: 2018 | R33: 33 | S33: ТМГ-250 | T33: 0.25 | U33: 2018 | V33: 35 | W33: СВ-95 | X33: СИП | Y33: 0.28 | Z33: 1.861016949
A34: 13 | B34: Реконструкция ВЛ-0,4 кВ от КТП 208/250 кВА с заменой КТП | D34: 25 | E34: ТМ-250 | F34: 0.25 | H34: 16.27 | I34: Д, ЖБД | J34: А, АС | K34: 0.27 | L34: 2.164 | M34: 0.2164 | N34: 1.9476 | Q34: 2018 | R34: 33 | S34: ТМГ-250 | T34: 0.25 | U34: 2018 | V34: 35 | W34: СВ-95 | X34: СИП | Y34: 0.27 | Z34: 1.833898305
A35: 14 | B35: Реконструкция ВЛ-10 кВ Ф-1 ПС Алексанровка | H35: 16.27 | I35: Д, ЖБД | J35: А, АС | K35: 0.48 | L35: 2.836 | M35: 0.2836 | N35: 2.5524 | U35: 2018 | V35: 35 | W35: СВ-110 | X35: СИП | Y35: 0.48 | Z35: 2.403389831
A36: 15 | B36: Реконструкция ВЛ-0,4 кВ от КТП 816/160 кВА с заменой КТП | D36: 25 | E36: ТМ-160 | F36: 0.16 | H36: 16.27 | I36: Д, ЖБД | J36: А, АС | K36: 0.418 | L36: 2.6376 | M36: 0.26376 | N36: 2.37384 | Q36: 2018 | R36: 33 | S36: ТМГ-160 | T36: 0.16 | U36: 2018 | V36: 35 | W36: СВ-95 | X36: СИП | Y36: 0.418 | Z36: 2.235254237
A37: 16 | B37: Реконструкция ВЛ-0,4 кВ от КТП 518/400 кВА с заменой КТП | D37: 25 | E37: ТМ-400 | F37: 0.4 | H37: 16.27 | I37: Д, ЖБД | J37: А, АС | K37: 0.8 | L37: 4.16 | M37: 0.416 | N37: 3.744 | Q37: 2018 | R37: 33 | S37: ТМГ-400 | T37: 0.4 | U37: 2018 | V37: 35 | W37: СВ-95 | X37: СИП | Y37: 0.8 | Z37: 3.525423729
A38: 17 | B38: Реконструкция ВЛ-0,4 кВ от КТП 517/160 кВА с заменой КТП | D38: 25 | E38: ТМ-160 | F38: 0.16 | H38: 16.27 | I38: Д, ЖБД | J38: А, АС | K38: 0.4 | L38: 2.58 | M38: 0.258 | N38: 2.322 | Q38: 2018 | R38: 33 | S38: ТМГ-160 | T38: 0.16 | U38: 2018 | V38: 35 | W38: СВ-95 | X38: СИП | Y38: 0.4 | Z38: 2.186440678
A39: 18 | B39: Больше-Черниговский район | M39: 0 | N39: 0 | Y39: 0 | Z39: 0
A40: 19 | B40: Реконструкция ВЛ-0,4кВ от КТП 709/250 кВА с заменой КТП | D40: 25 | E40: ТМ-250 | F40: 0.25 | H40: 16.27 | I40: Д, ЖБД | J40: А, АС | K40: 0.42 | L40: =K40*3.2+1.3 -> 2.644 | M40: 0.2644 | N40: 2.3796 | Q40: 2018 | R40: 33 | S40: ТМГ-250 | T40: 0.25 | U40: 2018 | V40: 35 | W40: СВ-95 | X40: СИП | Y40: 0.42 | Z40: 2.240677966
A41: 20 | B41: Реконструкция ВЛ-0,4кВ от КТП 501/320 кВА с заменой КТП на 400кВА | D41: 25 | E41: ТМ-320 | F41: 0.32 | H41: 16.27 | I41: Д, ЖБД | J41: А, АС | K41: 0.42 | L41: =K41*3.2+1.6 -> 2.944 | M41: 0.2944 | N41: 2.6496 | Q41: 2018 | R41: 33 | S41: ТМГ-400 | T41: 0.4 | U41: 2018 | V41: 35 | W41: СВ-95 | X41: СИП | Y41: 0.42 | Z41: 2.494915254
A42: 21 | B42: Реконструкция ВЛ-0,4кВ от КТП 415/250 кВА с заменой КТП | D42: 25 | E42: ТМ-250 | F42: 0.25 | H42: 16.27 | I42: Д, ЖБД | J42: А, АС | K42: 0.8 | L42: =0.8*3.2+1.3 -> 3.86 | M42: 0.386 | N42: 3.474 | Q42: 2018 | R42: 33 | S42: ТМГ-250 | T42: 0.25 | U42: 2018 | V42: 35 | W42: СВ-95 | X42: СИП | Y42: 0.8 | Z42: 3.271186441
A43: 22 | B43: Реконструкция ВЛ-0,4кВ от КТП 904/250 кВА с заменой КТП | D43: 25 | E43: ТМ-250 | F43: 0.25 | H43: 16.27 | I43: Д, ЖБД | J43: А, АС | K43: 2.4 | L43: 8.98 | M43: 0.898 | N43: 8.082 | Q43: 2018 | R43: 33 | S43: ТМГ-250 | T43: 0.25 | U43: 2018 | V43: 35 | W43: СВ-95 | X43: СИП | Y43: 2.4 | Z43: 7.610169492
A44: 23 | B44: Реконструкция ВЛ-0,4кВ от КТП 407/400 кВА с заменой КТП | D44: 25 | E44: ТМ-400 | F44: 0.4 | H44: 16.27 | I44: Д, ЖБД | J44: А, АС | K44: 1.7 | L44: 7.04 | M44: 0.704 | N44: 6.336 | Q44: 2018 | R44: 33 | S44: ТМГ-400 | T44: 0.4 | U44: 2018 | V44: 35 | W44: СВ-95 | X44: СИП | Y44: 1.7 | Z44: 5.966101695
A45: 24 | B45: Реконструкция ВЛ-0,4кВ от КТП 109/400 кВА с заменой КТП | D45: 25 | E45: ТМ-400 | F45: 0.4 | H45: 16.27 | I45: Д, ЖБД | J45: А, АС | K45: 1.3 | L45: 5.76 | M45: 0.576 | N45: 5.184 | Q45: 2018 | R45: 33 | S45: ТМГ-400 | T45: 0.4 | U45: 2018 | V45: 35 | W45: СВ-95 | X45: СИП | Y45: 1.3 | Z45: 4.881355932
A46: 25 | B46: Реконструкция ВЛ-0,4кВ от КТП 911/100 кВА с заменой КТП | D46: 25 | E46: ТМ-100 | F46: 0.1 | H46: 16.27 | I46: Д, ЖБД | J46: А, АС | K46: 0.5 | L46: 2.9 | M46: 0.29 | N46: 2.61 | Q46: 2018 | R46: 33 | S46: ТМГ-100 | T46: 0.1 | U46: 2018 | V46: 35 | W46: СВ-95 | X46: СИП | Y46: 0.5 | Z46: 2.457627119
A47: 26 | B47: Реконструкция ВЛ-0,4кВ от КТП 909/160 кВА с заменой КТП | D47: 25 | E47: ТМ-160 | F47: 0.16 | H47: 16.27 | I47: Д, ЖБД | J47: А, АС | K47: 0.2 | L47: 1.94 | M47: 0.194 | N47: 1.746 | Q47: 2018 | R47: 33 | S47: ТМГ-160 | T47: 0.16 | U47: 2018 | V47: 35 | W47: СВ-95 | X47: СИП | Y47: 0.2 | Z47: 1.644067797
A48: 27 | B48: Реконструкция ВЛ-0,4кВ от КТП 709/250 кВА с заменой КТП | D48: 25 | E48: ТМ-250 | F48: 0.25 | H48: 16.27 | I48: Д, ЖБД | J48: А, АС | K48: 0.42 | L48: 2.644 | M48: 0.2644 | N48: 2.3796 | Q48: 2018 | R48: 33 | S48: ТМГ-250 | T48: 0.25 | U48: 2018 | V48: 35 | W48: СВ-95 | X48: СИП | Y48: 0.42 | Z48: 2.240677966
A49: 28 | B49: Реконструкция КТП 905/400 кВА | D49: 25 | E49: ТМ-400 | F49: 0.4 | L49: 1.6 | M49: 0.16 | N49: 1.44 | Q49: 2018 | R49: 33 | S49: ТМГ-400 | T49: 0.4 | Y49: 0 | Z49: 1.355932203
A50: 29 | B50: Реконструкция КТП 403/250 кВА | D50: 25 | E50: ТМ-250 | F50: 0.25 | L50: 1.3 | M50: 0.13 | N50: 1.17 | Q50: 2018 | R50: 33 | S50: ТМГ-250 | T50: 0.25 | Y50: 0 | Z50: 1.101694915
A51: 30 | B51: Реконструкция КТП 903/250 кВА | D51: 25 | E51: ТМ-250 | F51: 0.25 | L51: 1.3 | M51: 0.13 | N51: 1.17 | Q51: 2018 | R51: 33 | S51: ТМГ-250 | T51: 0.25 | Y51: 0 | Z51: 1.101694915
A52: 31 | B52: Реконструкция КТП 102/400 кВА | D52: 25 | E52: ТМ-400 | F52: 0.4 | L52: 1.6 | M52: 0.16 | N52: 1.44 | Q52: 2018 | R52: 33 | S52: ТМГ-400 | T52: 0.4 | Y52: 0 | Z52: 1.355932203
A53: 32 | B53: Реконструкция КТП 907/250 кВА | D53: 25 | E53: ТМ-250 | F53: 0.25 | L53: 1.3 | M53: 0.13 | N53: 1.17 | Q53: 2018 | R53: 33 | S53: ТМГ-250 | T53: 0.25 | Y53: 0 | Z53: 1.101694915
A54: 33 | B54: Реконструкция КТП 105/250 кВА | D54: 25 | E54: ТМ-250 | F54: 0.25 | L54: 1.3 | M54: 0.13 | N54: 1.17 | Q54: 2018 | R54: 33 | S54: ТМГ-250 | T54: 0.25 | Y54: 0 | Z54: 1.101694915
A55: 34 | B55: Реконструкция КТП 110/160 кВА | D55: 25 | E55: ТМ-160 | F55: 0.16 | L55: 1.3 | M55: 0.13 | N55: 1.17 | Q55: 2018 | R55: 33 | S55: ТМГ-160 | T55: 0.16 | Y55: 0 | Z55: 1.101694915
A56: 35 | B56: Волжский район | M56: 0 | N56: 0 | Y56: 0 | Z56: 0
A57: 36 | B57: Реконструкция ВЛ-0,4 кВ от КТП 603/160 кВА | H57: 16.27 | I57: Д, ЖБД | J57: А, АС | K57: 0.5 | L57: =K57*3.2 -> 1.6 | M57: 0.16 | N57: 1.44 | U57: 2018 | V57: 35 | W57: СВ-95 | X57: СИП | Y57: 0.5 | Z57: 1.355932203
A58: 37 | B58: Реконструкция ВЛ-0,4 кВ от КТП 201/160 кВА | H58: 16.27 | I58: Д, ЖБД | J58: А, АС | K58: 1.2 | L58: =K58*3.2 -> 3.84 | M58: 0.384 | N58: 3.456 | U58: 2018 | V58: 35 | W58: СВ-95 | X58: СИП | Y58: 1.2 | Z58: 3.254237288
A59: 38 | B59: Реконструкция ВЛ -0,4кВ от КТП 2106/160 кВА | H59: 16.27 | I59: Д, ЖБД | J59: А, АС | K59: 2.7 | L59: 8.64 | M59: 0.864 | N59: 7.776 | U59: 2018 | V59: 35 | W59: СВ-95 | X59: СИП | Y59: 2.7 | Z59: 7.322033898
A60: 39 | B60: Реконструкция ВЛ-0,4 кВ от КТП 228/400 кВА | H60: 16.27 | I60: Д, ЖБД | J60: А, АС | K60: 1.7 | L60: 5.44 | M60: 0.544 | N60: 4.896 | U60: 2018 | V60: 35 | W60: СВ-95 | X60: СИП | Y60: 1.7 | Z60: 4.610169492
A61: 40 | B61: Реконструкция ВЛ-0,4кВ от КТП 212/400 кВА | H61: 16.27 | I61: Д, ЖБД | J61: А, АС | K61: 1.3 | L61: 4.16 | M61: 0.416 | N61: 3.744 | U61: 2018 | V61: 35 | W61: СВ-95 | X61: СИП | Y61: 1.3 | Z61: 3.525423729
A62: 41 | B62: Реконструкция ВЛ -0,4кВ от КТП 211/250 кВА | H62: 16.27 | I62: Д, ЖБД | J62: А, АС | K62: 1.22 | L62: 3.904 | M62: 0.3904 | N62: 3.5136 | U62: 2018 | V62: 35 | W62: СВ-95 | X62: СИП | Y62: 1.22 | Z62: 3.308474576
A63: 42 | B63: Реконструкция ВЛ -0,4кВ от КТП 215/400 кВА | H63: 16.27 | I63: Д, ЖБД | J63: А, АС | K63: 1.03 | L63: 3.296 | M63: 0.3296 | N63: 2.9664 | U63: 2018 | V63: 35 | W63: СВ-95 | X63: СИП | Y63: 1.03 | Z63: 2.793220339
A64: 43 | B64: Реконструкция ВЛ-0,4кВ от КТП 218/250 кВА | H64: 16.27 | I64: Д, ЖБД | J64: А, АС | K64: 0.31 | L64: 0.992 | M64: 0.0992 | N64: 0.8928 | U64: 2018 | V64: 35 | W64: СВ-95 | X64: СИП | Y64: 0.31 | Z64: 0.8406779661
A65: 44 | B65: Реконструкция ВЛ-0,4кВ от ТП 914/400 кВА | H65: 16.27 | I65: Д, ЖБД | J65: А, АС | K65: 0.5 | L65: 1.6 | M65: 0.16 | N65: 1.44 | U65: 2018 | V65: 35 | W65: СВ-95 | X65: СИП | Y65: 0.5 | Z65: 1.355932203
A66: 45 | B66: Реконструкция ВЛ-0,4кВ от ТП Ов 3020/400 кВА | H66: 16.27 | I66: Д, ЖБД | J66: А, АС | K66: 0.3 | L66: 0.96 | M66: 0.096 | N66: 0.864 | U66: 2018 | V66: 35 | W66: СВ-95 | X66: СИП | Y66: 0.3 | Z66: 0.813559322
A67: 46 | B67: Реконструкция ВЛ-0,4кВ от КТП Л2513/630 кВА | H67: 16.27 | I67: Д, ЖБД | J67: А, АС | K67: 0.75 | L67: 2.4 | M67: 0.24 | N67: 2.16 | U67: 2018 | V67: 35 | W67: СВ-95 | X67: СИП | Y67: 0.75 | Z67: 2.033898305
A68: 47 | B68: Реконструкция ВЛ-0,4кВ от ТП Л 2502/320 кВА | H68: 16.27 | I68: Д, ЖБД | J68: А, АС | K68: 0.35 | L68: 1.12 | M68: 0.112 | N68: 1.008 | U68: 2018 | V68: 35 | W68: СВ-95 | X68: СИП | Y68: 0.35 | Z68: 0.9491525424
A69: 48 | B69: Реконструкция ВЛ-0,4кВ от ТП ДУ 2127/160 кВА | H69: 16.27 | I69: Д, ЖБД | J69: А, АС | K69: 0.15 | L69: 0.48 | M69: 0.048 | N69: 0.432 | U69: 2018 | V69: 35 | W69: СВ-95 | X69: СИП | Y69: 0.15 | Z69: 0.406779661
A70: 49 | B70: Реконструкция ВЛ-0,4кВ от КТП 608/400 кВА | H70: 16.27 | I70: Д, ЖБД | J70: А, АС | K70: 0.3 | L70: 0.96 | M70: 0.096 | N70: 0.864 | U70: 2018 | V70: 35 | W70: СВ-95 | X70: СИП | Y70: 0.3 | Z70: 0.813559322
A71: 50 | B71: Реконструкция ВЛ-0,4кВ от ТП В 706/400 кВА | H71: 16.27 | I71: Д, ЖБД | J71: А, АС | K71: 0.63 | L71: 2.016 | M71: 0.2016 | N71: 1.8144 | U71: 2018 | V71: 35 | W71: СВ-95 | X71: СИП | Y71: 0.63 | Z71: 1.708474576
A72: 51 | B72: Реконструкция ВЛ-0,4кВ от ТП В 701/400 кВА | H72: 16.27 | I72: Д, ЖБД | J72: А, АС | K72: 0.2 | L72: 0.64 | M72: 0.064 | N72: 0.576 | U72: 2018 | V72: 35 | W72: СВ-95 | X72: СИП | Y72: 0.2 | Z72: 0.5423728814
A73: 52 | B73: Реконструкция ВЛ-0,4 кВ от КТП В 1906/2х250 кВА | H73: 16.27 | I73: Д, ЖБД | J73: А, АС | K73: 0.69 | L73: 2.208 | M73: 0.2208 | N73: 1.9872 | U73: 2018 | V73: 35 | W73: СВ-95 | X73: СИП | Y73: 0.69 | Z73: 1.871186441
A74: 53 | B74: Реконструкция ВЛ-0,4кВ от КТП ДТ 1020/400 кВА | H74: 16.27 | I74: Д, ЖБД | J74: А, АС | K74: 0.1 | L74: 0.32 | M74: 0.032 | N74: 0.288 | U74: 2018 | V74: 35 | W74: СВ-95 | X74: СИП | Y74: 0.1 | Z74: 0.2711864407
A75: 54 | B75: Реконструкция ВЛ-0,4кВ от ТП СТ 610/400 кВА | H75: 16.27 | I75: Д, ЖБД | J75: А, АС | K75: 0.82 | L75: 2.624 | M75: 0.2624 | N75: 2.3616 | U75: 2018 | V75: 35 | W75: СВ-95 | X75: СИП | Y75: 0.82 | Z75: 2.223728814
A76: 55 | B76: Реконструкция ВЛ-0,4 кВ КТП 21/250 кВА | H76: 16.27 | I76: Д, ЖБД | J76: А, АС | K76: 1.5 | L76: 4.8 | M76: 0.48 | N76: 4.32 | U76: 2018 | V76: 35 | W76: СВ-95 | X76: СИП | Y76: 1.5 | Z76: 4.06779661
A77: 56 | B77: Реконструкция ВЛ - 0,4 кВ КТП 1205/250 кВА | H77: 16.27 | I77: Д, ЖБД | J77: А, АС | K77: 1 | L77: 3.2 | M77: 0.32 | N77: 2.88 | U77: 2018 | V77: 35 | W77: СВ-95 | X77: СИП | Y77: 1 | Z77: 2.711864407
A78: 57 | B78: Реконструкция КТП КУР 1204/250 кВА | D78: 25 | E78: ТМ-250 | F78: 0.25 | L78: 1.3 | M78: 0.13 | N78: 1.17 | Q78: 2018 | R78: 33 | S78: ТМГ-250 | T78: 0.25 | Y78: 0 | Z78: 1.101694915
A79: 58 | B79: Реконструкция КТП КУР 2018/250 кВА | D79: 25 | E79: ТМ-250 | F79: 0.25 | L79: 1.3 | M79: 0.13 | N79: 1.17 | Q79: 2018 | R79: 33 | S79: ТМГ-250 | T79: 0.25 | Y79: 0 | Z79: 1.101694915
A80: 59 | B80: Реконструкция КТП КУР 2013/250+400 кВА | D80: 25 | E80: ТМ-250 ТМ-400 | F80: 0.65 | L80: 6 | M80: 0.6 | N80: 5.4 | Q80: 2018 | R80: 33 | S80: ТМГ-250 ТМГ-400 | T80: 0.65 | Y80: 0 | Z80: 5.084745763
A81: 60 | B81: Реконструкция КЛ-0,4 кВ от ЗТП КУР 927/250+250 кВА | H81: 16.27 | I81: Д, ЖБД | J81: А, АС | K81: 0.3 | L81: 1.35 | M81: 0.135 | N81: 1.215 | U81: 2018 | V81: 35 | W81: СВ-95 | X81: СИП | Y81: 0.3 | Z81: 1.144067797
A82: 61 | B82: Реконструкция КЛ-0,4 кВ от ЗТП КУР 2001/400 кВА | H82: 16.27 | I82: Д, ЖБД | J82: А, АС | K82: 0.15 | L82: 0.675 | M82: 0.0675 | N82: 0.6075 | U82: 2018 | V82: 35 | W82: СВ-95 | X82: СИП | Y82: 0.15 | Z82: 0.5720338983
A83: 62 | B83: Реконструкция КТП КУР 1213/250 кВА | D83: 25 | E83: ТМ-160 | F83: 0.25 | L83: 1.3 | M83: 0.13 | N83: 1.17 | Q83: 2018 | R83: 33 | S83: ТМГ-160 | T83: 0.25 | Y83: 0 | Z83: 1.101694915
A84: 63 | B84: Реконструкция ВЛ-6 кВ КУР-9 | H84: 16.27 | I84: Д, ЖБД | J84: А, АС | K84: 0.5 | L84: 1.6 | M84: 0.16 | N84: 1.44 | U84: 2018 | V84: 35 | W84: СВ-110 | X84: СИП | Y84: 0.5 | Z84: 1.355932203
A85: 64 | B85: Елховский район | M85: 0 | N85: 0 | Y85: 0 | Z85: 0
A86: 65 | B86: Реконструкция КТП Елх 401/250 кВА | D86: 25 | E86: ТМ-25 | F86: 0.25 | L86: 1.3 | M86: 0.13 | N86: 1.17 | Q86: 2018 | R86: 33 | S86: ТМГ-250 | T86: 0.25 | Y86: 0 | Z86: 1.101694915
A87: 66 | B87: Реконструкция КТП Елх 404/160 кВА | D87: 25 | E87: ТМ-160 | F87: 0.16 | L87: 1.3 | M87: 0.13 | N87: =L87-(M87+O87) -> 1.17 | Q87: 2018 | R87: 33 | S87: ТМГ-160 | T87: 0.16 | Y87: 0 | Z87: 1.101694915
A88: 67 | B88: Реконструкция КТП Елх 417/400 кВА | D88: 25 | E88: ТМ-400 | F88: 0.4 | L88: 1.6 | M88: =L88*0.1 -> 0.16 | N88: 1.44 | Q88: 2018 | R88: 33 | S88: ТМГ-400 | T88: 0.4 | Y88: 0 | Z88: 1.355932203
A89: 68 | B89: Реконструкция КТП Елх 421/100 кВА | D89: 25 | E89: ТМ-100 | F89: 0.1 | L89: 1.3 | M89: 0.13 | N89: 1.17 | Q89: 2018 | R89: 33 | S89: ТМГ-100 | T89: 0.1 | Y89: 0 | Z89: 1.101694915
A90: 69 | B90: Реконструкция КТП Елх 425/250 кВА | D90: 25 | E90: ТМ-250 | F90: 0.25 | L90: 1.3 | M90: 0.13 | N90: 1.17 | Q90: 2018 | R90: 33 | S90: ТМГ-250 | T90: 0.25 | Y90: 0 | Z90: 1.101694915
A91: 70 | B91: Реконструкция ВЛ-0,4кВ от КТП Елх 403/160 кВА с заменой КТП | D91: 25 | E91: ТМ-160 | F91: 0.16 | H91: 16.27 | I91: Д, ЖБД | J91: А, АС | K91: 0.48 | L91: 2.836 | M91: 0.2836 | N91: 2.5524 | Q91: 2018 | R91: 33 | S91: ТМГ-160 | T91: 0.16 | U91: 2018 | V91: 35 | W91: СВ-95 | X91: СИП | Y91: 0.48 | Z91: 2.403389831
A92: 71 | B92: Кинель-Черкасский район | M92: 0 | N92: 0 | Y92: 0 | Z92: 0
A93: 72 | B93: Реконструкция ВЛ-0,4 кВ от ЗТП Ч 1703/400 кВА с заменой ЗТП на КТП | D93: 25 | E93: ТМ-400 | F93: 0.4 | H93: 16.27 | I93: Д, ЖБД | J93: А, АС | K93: 7.6 | L93: =K93*3.2+1.6 -> 25.92 | M93: 2.592 | N93: 23.328 | Q93: 2018 | R93: 33 | S93: ТМГ-400 | T93: 0.4 | U93: 2018 | V93: 35 | W93: СВ-95 | X93: СИП | Y93: 7.6 | Z93: 21.96610169
A94: 73 | B94: Реконструкция ВЛ-0,4 кВ от КТП Ч 417/160 кВА с заменой КТП и силового трансформатора на 250 кВА | D94: 25 | E94: ТМ-160 | F94: 0.16 | H94: 16.27 | I94: Д, ЖБД | J94: А, АС | K94: 3.4 | L94: 10.88 | M94: 1.088 | N94: 9.792 | Q94: 2018 | R94: 33 | S94: ТМГ-250 | T94: 0.25 | U94: 2018 | V94: 35 | W94: СВ-95 | X94: СИП | Y94: 3.4 | Z94: 9.220338983
A95: 74 | B95: Реконструкция ВЛ-0,4 кВ от КТП Кр 917/400 кВА с заменой КТП | D95: 25 | E95: ТМ-400 | F95: 0.4 | H95: 16.27 | I95: Д, ЖБД | J95: А, АС | K95: 7.6 | L95: =K95*3.2+1.6 -> 25.92 | M95: 2.592 | N95: 23.328 | Q95: 2018 | R95: 33 | S95: ТМГ-400 | T95: 0.4 | U95: 2018 | V95: 35 | W95: СВ-95 | X95: СИП | Y95: 7.6 | Z95: 21.96610169
A96: 75 | B96: Реконструкция ВЛ-0,4кВ от ЗТП Сах 101/320 с заменой ЗТП на КТП 400+160кВА | D96: 25 | E96: ТМ-320 | F96: 0.32 | H96: 16.27 | I96: Д, ЖБД | J96: А, АС | K96: 2 | L96: =K96*3.2+1.6+1.3 -> 9.3 | M96: 0.93 | N96: 8.37 | Q96: 2018 | R96: 33 | S96: ТМГ-400+160 | T96: 0.56 | U96: 2018 | V96: 35 | W96: СВ-95 | X96: СИП | Y96: 2 | Z96: 7.881355932
A97: 76 | B97: Реконструкция ВЛ-0,4кВ от КТП Ч 212/100 с заменой КТП и установкой дополнительной КТП 250кВА | D97: 25 | E97: ТМ-100 | F97: 0.1 | H97: 16.27 | I97: Д, ЖБД | J97: А, АС | K97: 2 | L97: =K97*3.2+1.3+1.3 -> 9 | M97: 0.9 | N97: 8.1 | Q97: 2018 | R97: 33 | S97: ТМГ-100 ТМГ-250 | T97: 0.35 | U97: 2018 | V97: 35 | W97: СВ-95 | X97: СИП | Y97: 2 | Z97: 7.627118644
A98: 77 | B98: г.о. Кинель | M98: 0 | N98: 0 | Y98: 0 | Z98: 0
A99: 78 | B99: Реконструкция ВЛ-0.4кВ от КТП-110/250 кВА | H99: 16.27 | I99: Д, ЖБД | J99: А, АС | K99: 1.4 | L99: =K99*3.2 -> 4.48 | M99: 0.448 | N99: 4.032 | U99: 2018 | V99: 35 | W99: СВ-95 | X99: СИП | Y99: 1.4 | Z99: 3.796610169
A100: 79 | B100: Реконструкция ВЛ-0.4кВ от КТП-5/630 кВА | H100: 16.27 | I100: Д, ЖБД | J100: А, АС | K100: 2.9 | L100: =K100*3.2 -> 9.28 | M100: 0.928 | N100: 8.352 | U100: 2018 | V100: 35 | W100: СВ-95 | X100: СИП | Y100: 2.9 | Z100: 7.86440678
A101: 80 | B101: Реконструкция КТП-51/100кВА с заменой КТП на 250кВА | D101: 25 | E101: ТМ-100 | F101: 0.1 | L101: 1.3 | M101: 0.13 | N101: 1.17 | Q101: 2018 | R101: 33 | S101: ТМГ-250 | T101: 0.25 | Y101: 0 | Z101: 1.101694915
A102: 81 | B102: Реконструкция ВЛ-0.4кВ от ТП-82/800 кВА | H102: 16.27 | I102: Д, ЖБД | J102: А, АС | K102: 1.2 | L102: =K102*3.2 -> 3.84 | M102: 0.384 | N102: 3.456 | U102: 2018 | V102: 35 | W102: СВ-95 | X102: СИП | Y102: 1.2 | Z102: 3.254237288
A103: 82 | B103: Реконструкция ВЛ-0.4кВ от КТП-109/400 кВА | H103: 16.27 | I103: Д, ЖБД | J103: А, АС | K103: 2.5 | L103: =K103*3.2 -> 8 | M103: 0.8 | N103: 7.2 | U103: 2018 | V103: 35 | W103: СВ-95 | X103: СИП | Y103: 2.5 | Z103: 6.779661017
A104: 83 | B104: Реконструкция ВЛ-0.4кВ от ТП-25/630кВА | H104: 16.27 | I104: Д, ЖБД | J104: А, АС | K104: 2 | L104: 6.4 | M104: 0.64 | N104: 5.76 | U104: 2018 | V104: 35 | W104: СВ-95 | X104: СИП | Y104: 2 | Z104: 5.423728814
A105: 84 | B105: Реконструкция КТП-175/250кВА с заменой КТП на 400кВА | D105: 25 | E105: ТМ-250 | F105: 0.25 | L105: 1.6 | M105: 0.16 | N105: 1.44 | Q105: 2018 | R105: 33 | S105: ТМГ-400 | T105: 0.4 | Y105: 0 | Z105: 1.355932203
A106: 85 | B106: Реконструкция ВЛ-0.4кВ от КТП-117/250кВА | H106: 16.27 | I106: Д, ЖБД | J106: А, АС | K106: 1.8 | L106: =K106*3.2 -> 5.76 | M106: 0.576 | N106: 5.184 | U106: 2018 | V106: 35 | W106: СВ-95 | X106: СИП | Y106: 1.8 | Z106: 4.881355932
A107: 86 | B107: Реконструкция КТП-112/400кВА с заменой КТП на 630кВА | D107: 25 | E107: ТМ-400 | F107: 0.4 | L107: 2 | M107: 0.2 | N107: 1.8 | Q107: 2018 | R107: 33 | S107: ТМГ-630 | T107: 0.63 | Y107: 0 | Z107: 1.694915254
A108: 87 | B108: Реконструкция ВЛ-0.4кВ от КТП-23/250кВА с заменой КТП на 400кВА | H108: 16.27 | I108: Д, ЖБД | J108: А, АС | K108: 2 | L108: =K108*3.2+1.6 -> 8 | M108: 0.8 | N108: 7.2 | U108: 2018 | V108: 35 | W108: СВ-95 | X108: СИП | Y108: 2 | Z108: 6.779661017
A109: 88 | B109: Реконструкция ВЛ-0.4кВ от ТП-50/400 кВА | H109: 16.27 | I109: Д, ЖБД | J109: А, АС | K109: 0.8 | L109: =K109*3.2 -> 2.56 | M109: 0.256 | N109: 2.304 | U109: 2018 | V109: 35 | W109: СВ-95 | X109: СИП | Y109: 0.8 | Z109: 2.169491525
A110: 89 | B110: Реконструкция ВЛ-0.4кВ от ТП-7/400 кВА | H110: 16.27 | I110: Д, ЖБД | J110: А, АС | K110: 1.9 | L110: =K110*3.2 -> 6.08 | M110: 0.608 | N110: 5.472 | U110: 2018 | V110: 35 | W110: СВ-95 | X110: СИП | Y110: 1.9 | Z110: 5.152542373
A111: 90 | B111: Реконструкция ВЛ-0.4кВ от КТП-34/250кВА с заменой КТП на 400кВА | D111: 25 | E111: ТМ-250 | F111: 0.25 | H111: 16.27 | I111: Д, ЖБД | J111: А, АС | K111: 1.2 | L111: =K111*3.2+1.6 -> 5.44 | M111: 0.544 | N111: 4.896 | Q111: 2018 | R111: 33 | S111: ТМГ-400 | T111: 0.4 | U111: 2018 | V111: 35 | W111: СВ-95 | X111: СИП | Y111: 1.2 | Z111: 4.610169492
A112: 91 | B112: Реконструкция ВЛ-0.4кВ от ТП-29/250кВА | H112: 16.27 | I112: Д, ЖБД | J112: А, АС | K112: 0.8 | L112: =K112*3.2 -> 2.56 | M112: 0.256 | N112: 2.304 | U112: 2018 | V112: 35 | W112: СВ-95 | X112: СИП | Y112: 0.8 | Z112: 2.169491525
A113: 92 | B113: Реконструкция ВЛ-6 кВ Ф-2 ПС "Алакаевка" | H113: 16.27 | I113: Д, ЖБД | J113: А, АС | K113: 1.36 | L113: 4.352 | M113: 0.4352 | N113: 3.9168 | U113: 2018 | V113: 35 | W113: СВ-110 | X113: СИП | Y113: 1.36 | Z113: 3.688135593
A114: 93 | B114: Кинельский район | M114: 0 | N114: 0
A115: 94 | B115: Реконструкция ВЛ-0,4кВ от МТП Кр 903/100 кВА с заменой КТП | D115: 25 | E115: ТМ-100 | F115: 0.1 | H115: 16.27 | I115: Д, ЖБД | J115: А, АС | K115: 1.25 | L115: =K115*3.2+1.3 -> 5.3 | M115: 0.53 | N115: 4.77 | Q115: 2018 | R115: 33 | S115: ТМГ-100 | T115: 0.1 | U115: 2018 | V115: 35 | W115: СВ-95 | X115: СИП | Y115: 1.25 | Z115: 4.491525424
A116: 95 | B116: Реконструкция ВЛ-0,4кВ от МТП 704/250 кВА с заменой КТП | D116: 25 | E116: ТМ-250 | F116: 0.25 | H116: 16.27 | I116: Д, ЖБД | J116: А, АС | K116: 1 | L116: =K116*3.2+1.3 -> 4.5 | M116: 0.45 | N116: 4.05 | Q116: 2018 | R116: 33 | S116: ТМГ-250 | T116: 0.25 | U116: 2018 | V116: 35 | W116: СВ-95 | X116: СИП | Y116: 1 | Z116: 3.813559322
A117: 96 | B117: Реконструкция ВЛ-0,4кВ от КТП 210/160 кВА | H117: 16.27 | I117: Д, ЖБД | J117: А, АС | K117: 1.45 | L117: =K117*3.2+1.3 -> 5.94 | M117: 0.594 | N117: 5.346 | U117: 2018 | V117: 35 | W117: СВ-95 | X117: СИП | Y117: 1.45 | Z117: 5.033898305
A118: 97 | B118: Клявлинский район | M118: 0 | N118: 0 | Y118: 0 | Z118: 0
A119: 98 | B119: Реконструкция ВЛ-0,4кВ от КТП КЛВ 1407/250 кВА с заменой КТП | D119: 25 | E119: ТМ-250 | F119: 0.25 | H119: 16.27 | I119: Д, ЖБД | J119: А, АС | K119: 1.07 | L119: 4.724 | M119: 0.4724 | N119: 4.2516 | Q119: 2018 | R119: 33 | S119: ТМГ-250 | T119: 0.25 | U119: 2018 | V119: 35 | W119: СВ-95 | X119: СИП | Y119: 1.07 | Z119: 4.003389831
A120: 99 | B120: Реконструкция ВЛ-0,4кВ от КТП КЛВ 422/160 кВА с заменой КТП | D120: 25 | E120: ТМ-160 | F120: 0.16 | H120: 16.27 | I120: Д, ЖБД | J120: А, АС | K120: 1.6 | L120: 6.42 | M120: 0.642 | N120: 5.778 | Q120: 2018 | R120: 33 | S120: ТМГ-160 | T120: 0.16 | U120: 2018 | V120: 35 | W120: СВ-95 | X120: СИП | Y120: 1.6 | Z120: 5.440677966
A121: 100 | B121: Реконструкция ВЛ-0,4кВ от КТП КЛВ 1408/160 кВА с заменой КТП | D121: 25 | E121: ТМ-160 | F121: 0.16 | H121: 16.27 | I121: Д, ЖБД | J121: А, АС | K121: 2.3 | L121: 8.66 | M121: 0.866 | N121: 7.794 | Q121: 2018 | R121: 33 | S121: ТМГ-160 | T121: 0.16 | U121: 2018 | V121: 35 | W121: СВ-95 | X121: СИП | Y121: 2.3 | Z121: 7.338983051
A122: 101 | B122: Реконструкция ВЛ-0,4кВ от КТП ЧКЛ 703/160 кВА с заменой КТП | D122: 25 | E122: ТМ-160 | F122: 0.16 | H122: 16.27 | I122: Д, ЖБД | J122: А, АС | K122: 4.8 | L122: 16.66 | M122: 1.666 | N122: 14.994 | Q122: 2018 | R122: 33 | S122: ТМГ-160 | T122: 0.16 | U122: 2018 | V122: 35 | W122: СВ-95 | X122: СИП | Y122: 4.8 | Z122: 14.11864407
A123: 102 | B123: Реконструкция ВЛ-0,4кВ от КТП КЛВ 1027/160 кВА с заменой КТП | D123: 25 | E123: ТМ-160 | F123: 0.16 | H123: 16.27 | I123: Д, ЖБД | J123: А, АС | K123: 0.81 | L123: 3.892 | M123: 0.3892 | N123: 3.5028 | Q123: 2018 | R123: 33 | S123: ТМГ-160 | T123: 0.16 | U123: 2018 | V123: 35 | W123: СВ-95 | X123: СИП | Y123: 0.81 | Z123: 3.298305085
A124: 103 | B124: Реконструкция ВЛ-0,4кВ от КТП КЛВ 1405/160 кВА с заменой КТП | D124: 25 | E124: ТМ-160 | F124: 0.16 | H124: 16.27 | I124: Д, ЖБД | J124: А, АС | K124: 2 | L124: 7.7 | M124: 0.77 | N124: 6.93 | Q124: 2018 | R124: 33 | S124: ТМГ-160 | T124: 0.16 | U124: 2018 | V124: 35 | W124: СВ-95 | X124: СИП | Y124: 2 | Z124: 6.525423729
A125: 104 | B125: Реконструкция ВЛ-0,4кВ от КТП КЛВ 421/160 кВА с заменой КТП | D125: 25 | E125: ТМ-160 | F125: 0.16 | H125: 16.27 | I125: Д, ЖБД | J125: А, АС | K125: 3.1 | L125: 11.22 | M125: 1.122 | N125: 10.098 | Q125: 2018 | R125: 33 | S125: ТМГ-160 | T125: 0.16 | U125: 2018 | V125: 35 | W125: СВ-95 | X125: СИП | Y125: 3.1 | Z125: 9.508474576
A126: 105 | B126: Реконструкция ВЛ-0,4кВ от КТП КЛВ 1404/160 кВА с заменой КТП | D126: 25 | E126: ТМ-160 | F126: 0.16 | H126: 16.27 | I126: Д, ЖБД | J126: А, АС | K126: 3.1 | L126: 11.22 | M126: 1.122 | N126: 10.098 | Q126: 2018 | R126: 33 | S126: ТМГ-160 | T126: 0.16 | U126: 2018 | V126: 35 | W126: СВ-95 | X126: СИП | Y126: 3.1 | Z126: 9.508474576
A127: 106 | B127: Реконструкция ВЛ-0,4кВ от КТП КЛВ 1412/100 кВА | H127: 16.27 | I127: Д, ЖБД | J127: А, АС | K127: 1.78 | L127: 5.696 | M127: 0.5696 | N127: 5.1264 | U127: 2018 | V127: 35 | W127: СВ-95 | X127: СИП | Y127: 1.78 | Z127: 4.827118644
A128: 107 | B128: Реконструкция ВЛ-0,4кВ от КТП КЛВ 1411/160 кВА | H128: 16.27 | I128: Д, ЖБД | J128: А, АС | K128: 2.1 | L128: 6.72 | M128: 0.672 | N128: 6.048 | U128: 2018 | V128: 35 | W128: СВ-95 | X128: СИП | Y128: 2.1 | Z128: 5.694915254
A129: 108 | B129: Реконструкция ВЛ-0,4кВ от КТП ЕЛЗ 401/100 кВА | H129: 16.27 | I129: Д, ЖБД | J129: А, АС | K129: 0.5 | L129: 1.6 | M129: 0.16 | N129: 1.44 | U129: 2018 | V129: 35 | W129: СВ-95 | X129: СИП | Y129: 0.5 | Z129: 1.355932203
A130: 109 | B130: Кошкинский район | M130: 0 | N130: 0 | Y130: 0 | Z130: 0
A131: 110 | B131: Реконструкция ВЛ-10 кВ Ф-11 ПС Надеждино | H131: 16.27 | I131: Д, ЖБД | J131: А, АС | K131: 1.3 | L131: 4.16 | M131: 0.416 | N131: 3.744 | U131: 2018 | V131: 35 | W131: СВ-110 | X131: СИП | Y131: 1.3 | Z131: 3.525423729
A132: 111 | B132: Реконструкция ВЛ-0,4кВ от ЗТП КШК 1301/2*400 кВА с заменой ЗТП на КТП 2*400 кВА | D132: 25 | E132: ТМ-2х400 | F132: 0.8 | H132: 16.27 | I132: Д, ЖБД | J132: А, АС | K132: 2 | L132: 13.4 | M132: 1.34 | N132: 12.06 | Q132: 2018 | R132: 33 | S132: ТМГ-2х400 | T132: 0.8 | U132: 2018 | V132: 35 | W132: СВ-95 | X132: СИП | Y132: 2 | Z132: 11.3559322
A133: 112 | B133: Реконструкция ВЛ-0,4кВ отКТП КШК 510/160 кВА с заменой на КТП 250 кВА | D133: 25 | E133: ТМ-160 | F133: 0.16 | H133: 16.27 | I133: Д, ЖБД | J133: А, АС | K133: 2.8 | L133: 10.26 | M133: 1.026 | N133: 9.234 | Q133: 2018 | R133: 33 | S133: ТМГ-250 | T133: 0.25 | U133: 2018 | V133: 35 | W133: СВ-95 | X133: СИП | Y133: 2.8 | Z133: 8.694915254
A134: 113 | B134: Реконструкция ВЛ-0,4кВ от КТП КШК 703/250 кВА с заменой КТП | D134: 25 | E134: ТМ-250 | F134: 0.25 | H134: 16.27 | I134: Д, ЖБД | J134: А, АС | K134: 1.95 | L134: 7.54 | M134: 0.754 | N134: 6.786 | Q134: 2018 | R134: 33 | S134: ТМГ-250 | T134: 0.25 | U134: 2018 | V134: 35 | W134: СВ-95 | X134: СИП | Y134: 1.95 | Z134: 6.389830508
A135: 114 | B135: Реконструкция ВЛ-0,4кВ от КШК 706/400 кВА с заменой на КТП 630кВА | D135: 25 | E135: ТМ-400 | F135: 0.4 | H135: 16.27 | I135: Д, ЖБД | J135: А, АС | K135: 1.2 | L135: 5.84 | M135: 0.584 | N135: 5.256 | Q135: 2018 | R135: 33 | S135: ТМГ-630 | T135: 0.63 | U135: 2018 | V135: 35 | W135: СВ-95 | X135: СИП | Y135: 1.2 | Z135: 4.949152542
A136: 115 | B136: Реконструкция ВЛ-0,4кВ от КТП КШК 110/250 кВА с заменой КТП | D136: 25 | E136: ТМ-250 | F136: 0.25 | H136: 16.27 | I136: Д, ЖБД | J136: А, АС | K136: 3.2 | L136: 11.54 | M136: 1.154 | N136: 10.386 | Q136: 2018 | R136: 33 | S136: ТМГ-250 | T136: 0.25 | U136: 2018 | V136: 35 | W136: СВ-95 | X136: СИП | Y136: 3.2 | Z136: 9.779661017
A137: 116 | B137: Реконструкция ВЛ-0,4кВ от КТП КШК 506/250 кВА с заменой КТП | D137: 25 | E137: ТМ-250 | F137: 0.25 | H137: 16.27 | I137: Д, ЖБД | J137: А, АС | K137: 2.8 | L137: 10.26 | M137: 1.026 | N137: 9.234 | Q137: 2018 | R137: 33 | S137: ТМГ-250 | T137: 0.25 | U137: 2018 | V137: 35 | W137: СВ-95 | X137: СИП | Y137: 2.8 | Z137: 8.694915254
A138: 117 | B138: Реконструкция ВЛ-0,4 кВ от КТП КШК 109/160 с заменой ЗТП на КТП 160 кВА | D138: 25 | E138: ТМ-160 | F138: 0.16 | H138: 16.27 | I138: Д, ЖБД | J138: А, АС | K138: 0.4 | L138: 2.58 | M138: 0.258 | N138: 2.322 | Q138: 2018 | R138: 33 | S138: ТМГ-160 | T138: 0.16 | U138: 2018 | V138: 35 | W138: СВ-95 | X138: СИП | Y138: 0.4 | Z138: 2.186440678
A139: 118 | B139: Реконструкция ВЛ-0,4 кВ от КТП КШК 1115/250 с заменой КТП | D139: 25 | E139: ТМ-250 | F139: 0.25 | H139: 16.27 | I139: Д, ЖБД | J139: А, АС | K139: 1.2 | L139: 5.14 | M139: 0.514 | N139: 4.626 | Q139: 2018 | R139: 33 | S139: ТМГ-250 | T139: 0.25 | U139: 2018 | V139: 35 | W139: СВ-95 | X139: СИП | Y139: 1.2 | Z139: 4.355932203
A140: 119 | B140: Реконструкция ВЛ-0,4 кВ от КТП КШК 1113/250 кВА с заменой КТП | D140: 25 | E140: ТМ-250 | F140: 0.25 | H140: 16.27 | I140: Д, ЖБД | J140: А, АС | K140: 1.1 | L140: 4.82 | M140: 0.482 | N140: 4.338 | Q140: 2018 | R140: 33 | S140: ТМГ-250 | T140: 0.25 | U140: 2018 | V140: 35 | W140: СВ-95 | X140: СИП | Y140: 1.1 | Z140: 4.084745763
A141: 120 | B141: Реконструкция ВЛ-0,4 кВ от КТП КШК 504/160 с заменой КТП на 250 кВА | D141: 25 | E141: ТМ-160 | F141: 0.16 | H141: 16.27 | I141: Д, ЖБД | J141: А, АС | K141: 2.5 | L141: 9.3 | M141: 0.93 | N141: 8.37 | Q141: 2018 | R141: 33 | S141: ТМГ-250 | T141: 0.25 | U141: 2018 | V141: 35 | W141: СВ-95 | X141: СИП | Y141: 2.5 | Z141: 7.881355932
A142: 121 | B142: Красноармейский район | M142: 0 | N142: 0 | Z142: 0
A143: 122 | B143: Реконструкция ВЛ-10кВ Ф-4 ПС Воздвиженка | H143: 16.27 | I143: Д, ЖБД | J143: А, АС | K143: 0.72 | L143: =K143*3.2 -> 2.304 | M143: 0.2304 | N143: 2.0736 | U143: 2018 | V143: 35 | W143: СВ-110 | X143: СИП | Y143: 0.72 | Z143: 1.952542373
A144: 123 | B144: Реконструкция ВЛ-10кВ Ф-1 ПС Зайцевская | H144: 16.27 | I144: Д, ЖБД | J144: А, АС | K144: 0.35 | L144: =K144*3.2 -> 1.12 | M144: 0.112 | N144: 1.008 | U144: 2018 | V144: 35 | W144: СВ-110 | X144: СИП | Y144: 0.35 | Z144: 0.9491525424
A145: 124 | B145: Реконструкция ВЛ-10кВ Ф-1 ПС Волчанка | H145: 16.27 | I145: Д, ЖБД | J145: А, АС | K145: 0.28 | L145: =K145*3.2 -> 0.896 | M145: 0.0896 | N145: 0.8064 | U145: 2018 | V145: 35 | W145: СВ-110 | X145: СИП | Y145: 0.28 | Z145: 0.7593220339
A146: 125 | B146: Реконструкция ВЛ-0,4 кВ от КТП Вол 115/160 кВА | H146: 16.27 | I146: Д, ЖБД | J146: А, АС | K146: 1.48 | L146: =K146*3.2 -> 4.736 | M146: 0.4736 | N146: 4.2624 | U146: 2018 | V146: 35 | W146: СВ-95 | X146: СИП | Y146: 1.48 | Z146: 4.013559322
A147: 126 | B147: Реконструкция ВЛ-0,4 кВ от КТП Кл 208/100 кВА с заменой КТП | D147: 25 | E147: ТМ-100 | F147: 0.1 | H147: 16.27 | I147: Д, ЖБД | J147: А, АС | K147: 0.24 | L147: =K147*3.2+1.3 -> 2.068 | M147: 0.2068 | N147: 1.8612 | Q147: 2018 | R147: 33 | S147: ТМГ-100 | T147: 0.1 | U147: 2018 | V147: 35 | W147: СВ-95 | X147: СИП | Y147: 0.24 | Z147: 1.752542373
A148: 127 | B148: Реконструкция ВЛ-0,4 кВ от КТП Кол 202/100 кВА | H148: 16.27 | I148: Д, ЖБД | J148: А, АС | K148: 0.4 | L148: 1.28 | M148: 0.128 | N148: 1.152 | U148: 2018 | V148: 35 | W148: СВ-95 | X148: СИП | Y148: 0.4 | Z148: 1.084745763
A149: 128 | B149: Реконструкция ВЛ-0,4 кВ от КТП В.Гай 210/100 кВА с заменой КТП | D149: 25 | E149: ТМ-100 | F149: 0.1 | H149: 16.27 | I149: Д, ЖБД | J149: А, АС | K149: 0.72 | L149: 3.604 | M149: 0.3604 | N149: 3.2436 | Q149: 2018 | R149: 33 | S149: ТМГ-100 | T149: 0.1 | U149: 2018 | V149: 35 | W149: СВ-95 | X149: СИП | Y149: 0.72 | Z149: 3.054237288
A150: 129 | B150: Красноярский район | M150: 0 | N150: 0 | Y150: 0 | Z150: 0
A151: 130 | B151: Реконструкция ВЛ-0,4 кВ от КТП РЦ 1101/400 кВА с установкой дополнительной КТП 250 кВА | H151: 16.27 | I151: Д, ЖБД | J151: А, АС | K151: 6 | L151: =K151*3.2+1.3 -> 20.5 | M151: 2.05 | N151: =L151-(M151+O151) -> 18.45 | Q151: 2018 | R151: 33 | S151: ТМГ-250 | T151: 0.25 | U151: 2018 | V151: 35 | W151: СВ-95 | X151: СИП | Y151: 6 | Z151: 17.37288136
A152: 131 | B152: Реконструкция ВЛ-0,4 кВ от КТП НБ 1604/160 кВА с заменой КТП на 250 кВА | D152: 25 | E152: ТМ-160 | F152: 0.16 | H152: 16.27 | I152: Д, ЖБД | J152: А, АС | K152: 2 | L152: =K152*3.2+1.3 -> 7.7 | M152: =L152*0.1 -> 0.77 | N152: 6.93 | Q152: 2018 | R152: 33 | S152: ТМГ-250 | T152: 0.25 | U152: 2018 | V152: 35 | W152: СВ-95 | X152: СИП | Y152: 2 | Z152: 6.525423729
A153: 132 | B153: Реконструкция ВЛ-0,4 кВ от КТП Кяр 407/160 кВА с заменой КТП на 250 кВА | D153: 25 | E153: ТМ-160 | F153: 0.16 | H153: 16.27 | I153: Д, ЖБД | J153: А, АС | K153: 2 | L153: =K153*3.2+1.3 -> 7.7 | M153: 0.77 | N153: 6.93 | Q153: 2018 | R153: 33 | S153: ТМГ-250 | T153: 0.25 | U153: 2018 | V153: 35 | W153: СВ-95 | X153: СИП | Y153: 2 | Z153: 6.525423729
A154: 133 | B154: Реконструкция ВЛ-0,4 кВ от КТП РЦ 1113/320 кВА с заменой КТП на 400 кВА | D154: 25 | E154: ТМ-320 | F154: 0.32 | H154: 16.27 | I154: Д, ЖБД | J154: А, АС | K154: 3 | L154: =K154*3.2+1.6 -> 11.2 | M154: 1.12 | N154: 10.08 | Q154: 2018 | R154: 33 | S154: ТМГ-400 | T154: 0.4 | U154: 2018 | V154: 35 | W154: СВ-95 | X154: СИП | Y154: 3 | Z154: 9.491525424
A155: 134 | B155: Реконструкция ВЛ-0,4 кВ от КТП Кяр 619/250 кВА с заменой КТП на 400 кВА | D155: 25 | E155: ТМ-250 | F155: 0.25 | H155: 16.27 | I155: Д, ЖБД | J155: А, АС | K155: 4 | L155: =K155*3.2+1.6 -> 14.4 | M155: 1.44 | N155: 12.96 | Q155: 2018 | R155: 33 | S155: ТМГ-400 | T155: 0.4 | U155: 2018 | V155: 35 | W155: СВ-95 | X155: СИП | Y155: 4 | Z155: 12.20338983
A156: 135 | B156: Реконструкция ВЛ-0,4кВ от КТП НБ 514/160 кВА с заменой КТП на 250 кВА | D156: 25 | E156: ТМ-160 | F156: 0.16 | H156: 16.27 | I156: Д, ЖБД | J156: А, АС | K156: 3 | L156: 10.9 | M156: 1.09 | N156: 9.81 | Q156: 2018 | R156: 33 | S156: ТМГ-250 | T156: 0.25 | U156: 2018 | V156: 35 | W156: СВ-95 | X156: СИП | Y156: 3 | Z156: 9.237288136
A157: 136 | B157: Реконструкция ВЛ-0.4кВ от ЗТП РЦ 3104/400 кВА | H157: 16.27 | I157: Д, ЖБД | J157: А, АС | K157: 3.5 | L157: 11.2 | M157: 1.12 | N157: 10.08 | U157: 2018 | V157: 35 | W157: СВ-95 | X157: СИП | Y157: 3.5 | Z157: 9.491525424
A158: 137 | B158: Реконструкция ВЛ-0,4кВ от ЗТП ДСК 6053/250 кВА | H158: 16.27 | I158: Д, ЖБД | J158: А, АС | K158: 1 | L158: 3.2 | M158: 0.32 | N158: 2.88 | U158: 2018 | V158: 35 | W158: СВ-95 | X158: СИП | Y158: 1 | Z158: 2.711864407
A159: 138 | B159: Реконструкция ВЛ-0,4кВ от ЗТП НБ 501/400 кВА | H159: 16.27 | I159: Д, ЖБД | J159: А, АС | K159: 3 | L159: 9.6 | M159: 0.96 | N159: 8.64 | U159: 2018 | V159: 35 | W159: СВ-95 | X159: СИП | Y159: 3 | Z159: 8.13559322
A160: 139 | B160: Реконструкция КТП КЯР 303/100 кВА с заменой КТП на 160 кВА | D160: 25 | E160: ТМ-100 | F160: 0.1 | L160: 1.3 | M160: 0.13 | N160: 1.17 | Q160: 2018 | R160: 33 | S160: ТМГ-160 | T160: 0.16 | Y160: 0 | Z160: 1.101694915
A161: 140 | B161: Реконструкция ВЛ-0,4кВ от КТП ЦАР 1008/630 кВА с заменой КТП | D161: 25 | E161: ТМ-630 | F161: 0.63 | H161: 16.27 | I161: Д, ЖБД | J161: А, АС | K161: 2.5 | L161: 9.3 | M161: 0.93 | N161: 8.37 | Q161: 2018 | R161: 33 | S161: ТМГ-630 | T161: 0.63 | U161: 2018 | V161: 35 | W161: СВ-95 | X161: СИП | Y161: 2.5 | Z161: 7.881355932
A162: 141 | B162: Реконструкция ВЛ-10кВ ЦАР -10 | H162: 16.27 | I162: Д, ЖБД | J162: А, АС | K162: 0.9 | L162: 2.88 | M162: 0.288 | N162: 2.592 | U162: 2018 | V162: 35 | W162: СВ-95 | X162: СИП | Y162: 0.9 | Z162: 2.440677966
A163: 142 | B163: КВЛ-0,4кВ от КТП ЦАР 1009/400 кВА | H163: 16.27 | I163: Д, ЖБД | J163: А, АС | K163: 3 | L163: 9.6 | M163: 0.96 | N163: 8.64 | U163: 2018 | V163: 35 | W163: СВ-95 | X163: СИП | Y163: 3 | Z163: 8.13559322
A164: 143 | B164: Реконструкция ВЛ-0,4 кВ от КТП РАК 504/63 кВА с заменой КТП на 160 кВА и установкой дополнительной КТП 100 кВА | D164: 25 | E164: ТМ-63 | F164: 0.06 | H164: 16.27 | I164: Д, ЖБД | J164: А, АС | K164: 2.7 | L164: 11.24 | M164: 1.124 | N164: 10.116 | Q164: 2018 | R164: 33 | S164: ТМГ-160 ТМГ-100 | T164: 0.26 | U164: 2018 | V164: 35 | W164: СВ-95 | X164: СИП | Y164: 2.7 | Z164: 9.525423729
A165: 144 | B165: Реконструкция ВЛ-0,4 кВ от ЗТП КИН 603/250 кВА | H165: 16.27 | I165: Д, ЖБД | J165: А, АС | K165: 2.5 | L165: 8 | M165: 0.8 | N165: 7.2 | U165: 2018 | V165: 35 | W165: СВ-95 | X165: СИП | Y165: 2.5 | Z165: 6.779661017
A166: 145 | B166: Реконструкция ВЛ-0,4 кВ от ЗТП КИН 631/160 кВА | H166: 16.27 | I166: Д, ЖБД | J166: А, АС | K166: 2.5 | L166: 8 | M166: 0.8 | N166: 7.2 | U166: 2018 | V166: 35 | W166: СВ-95 | X166: СИП | Y166: 2.5 | Z166: 6.779661017
A167: 146 | B167: Реконструкция ВЛ-0,4 кВ от КТП 783/100 кВА | H167: 16.27 | I167: Д, ЖБД | J167: А, АС | K167: 2.2 | L167: 7.04 | M167: 0.704 | N167: 6.336 | U167: 2018 | V167: 35 | W167: СВ-95 | X167: СИП | Y167: 2.2 | Z167: 5.966101695
A168: 147 | B168: Пестравский район | M168: 0 | N168: 0 | Y168: 0 | Z168: 0
A169: 148 | B169: Реконструкция ВЛ-0,4 кВ от КТП 508/250 кВА с заменой КТП | D169: 25 | E169: ТМ-250 | F169: 0.25 | H169: 16.27 | I169: Д, ЖБД | J169: А, АС | K169: 3.52 | L169: =K169*3.2+1.3 -> 12.564 | M169: 1.2564 | N169: 11.3076 | Q169: 2018 | R169: 33 | S169: ТМГ-250 | T169: 0.25 | U169: 2018 | V169: 35 | W169: СВ-95 | X169: СИП | Y169: 3.52 | Z169: 10.64745763
A170: 149 | B170: Реконструкция ВЛ-0,4 кВ от КТП 507/160 кВА | H170: 16.27 | I170: Д, ЖБД | J170: А, АС | K170: 3.1 | L170: =K170*3.2 -> 9.92 | M170: 0.992 | N170: 8.928 | U170: 2018 | V170: 35 | W170: СВ-95 | X170: СИП | Y170: 3.1 | Z170: 8.406779661
A171: 150 | B171: Реконструкция ВЛ-0,4 кВ от КТП 420/160 кВА с заменой КТП | D171: 25 | E171: ТМ-160 | F171: 0.16 | H171: 16.27 | I171: Д, ЖБД | J171: А, АС | K171: 1.8 | L171: 7.06 | M171: 0.706 | N171: 6.354 | Q171: 2018 | R171: 33 | S171: ТМГ-160 | T171: 0.16 | U171: 2018 | V171: 35 | W171: СВ-95 | X171: СИП | Y171: 1.8 | Z171: 5.983050847
A172: 151 | B172: Реконструкция ВЛ-0,4 кВ от КТП Мт 102/250 кВА с заменой КТП | D172: 25 | E172: ТМ-250 | F172: 0.25 | H172: 16.27 | I172: Д, ЖБД | J172: А, АС | K172: 0.64 | L172: 3.348 | M172: 0.3348 | N172: 3.0132 | Q172: 2018 | R172: 33 | S172: ТМГ-250 | T172: 0.25 | U172: 2018 | V172: 35 | W172: СВ-95 | X172: СИП | Y172: 0.64 | Z172: 2.837288136
A173: 152 | B173: Реконструкция ВЛ-0,4 кВ от КТП 509/160 кВА | H173: 16.27 | I173: Д, ЖБД | J173: А, АС | K173: 4.2 | L173: 13.44 | M173: 1.344 | N173: 12.096 | U173: 2018 | V173: 35 | W173: СВ-95 | X173: СИП | Y173: 4.2 | Z173: 11.38983051
A174: 153 | B174: Реконструкция ВЛ-0,4 кВ от КТП 111/160 кВА с заменой КТП | D174: 25 | E174: ТМ-160 | F174: 0.16 | H174: 16.27 | I174: Д, ЖБД | J174: А, АС | K174: 1.62 | L174: 6.484 | M174: 0.6484 | N174: 5.8356 | Q174: 2018 | R174: 33 | S174: ТМГ-160 | T174: 0.16 | U174: 2018 | V174: 35 | W174: СВ-95 | X174: СИП | Y174: 1.62 | Z174: 5.494915254
A175: 154 | B175: Приволжский район | M175: 0 | N175: 0 | Y175: 0 | Z175: 0
A176: 155 | B176: Реконструкция ВЛ-0,4 кВ от ЗТП Об 1208/160 кВА с заменой КТП | D176: 25 | E176: ТМ-160 | F176: 0.16 | H176: 16.27 | I176: Д, ЖБД | J176: А, АС | K176: 1.43 | L176: =K176*3.2+1.3 -> 5.876 | M176: 0.5876 | N176: 5.2884 | Q176: 2018 | R176: 33 | S176: ТМГ-160 | T176: 0.16 | U176: 2018 | V176: 35 | W176: СВ-95 | X176: СИП | Y176: 1.43 | Z176: 4.979661017
A177: 156 | B177: Реконструкция ВЛ-0,4 кВ от КТП Ек 111/100 кВА с заменой КТП | D177: 25 | E177: ТМ-100 | F177: 0.1 | H177: 16.27 | I177: Д, ЖБД | J177: А, АС | K177: 0.9 | L177: =K177*3.2+1.3 -> 4.18 | M177: 0.418 | N177: 3.762 | Q177: 2018 | R177: 33 | S177: ТМГ-100 | T177: 0.1 | U177: 2018 | V177: 35 | W177: СВ-95 | X177: СИП | Y177: 0.9 | Z177: 3.542372881
A178: 157 | B178: Реконструкция ВЛ-0,4 кВ от КТП Пр 209/160 кВА с заменой КТП | D178: 25 | E178: ТМ-160 | F178: 0.16 | H178: 16.27 | I178: Д, ЖБД | J178: А, АС | K178: 0.315 | L178: 2.308 | M178: 0.2308 | N178: 2.0772 | Q178: 2018 | R178: 33 | S178: ТМГ-160 | T178: 0.16 | U178: 2018 | V178: 35 | W178: СВ-95 | X178: СИП | Y178: 0.315 | Z178: 1.955932203
A179: 158 | B179: Реконструкция ВЛ-0,4 кВ от КТП Пр 317/100 кВА с заменой КТП | D179: 25 | E179: ТМ-100 | F179: 0.1 | H179: 16.27 | I179: Д, ЖБД | J179: А, АС | K179: 0.2 | L179: 1.94 | M179: 0.194 | N179: 1.746 | Q179: 2018 | R179: 33 | S179: ТМГ-100 | T179: 0.1 | U179: 2018 | V179: 35 | W179: СВ-95 | X179: СИП | Y179: 0.2 | Z179: 1.644067797
A180: 159 | B180: Реконструкция ВЛ-0,4 кВ от КТП Пр 313/250 кВА с заменой КТП | D180: 25 | E180: ТМ-250 | F180: 0.25 | H180: 16.27 | I180: Д, ЖБД | J180: А, АС | K180: 0.17 | L180: 1.844 | M180: 0.1844 | N180: 1.6596 | Q180: 2018 | R180: 33 | S180: ТМГ-250 | T180: 0.25 | U180: 2018 | V180: 35 | W180: СВ-95 | X180: СИП | Y180: 0.17 | Z180: 1.562711864
A181: 160 | B181: Реконструкция ВЛ-0,4 кВ от КТП Пр 207/160 кВА с заменой КТП | D181: 25 | E181: ТМ-160 | F181: 0.16 | H181: 16.27 | I181: Д, ЖБД | J181: А, АС | K181: 0.21 | L181: 1.972 | M181: 0.1972 | N181: 1.7748 | Q181: 2018 | R181: 33 | S181: ТМГ-160 | T181: 0.16 | U181: 2018 | V181: 35 | W181: СВ-95 | X181: СИП | Y181: 0.21 | Z181: 1.671186441
A182: 161 | B182: Реконструкция ВЛ-10 кВ Ф-17 ПС Новоспасская | H182: 16.27 | I182: Д, ЖБД | J182: А, АС | K182: 1.5 | L182: 4.8 | M182: 0.48 | N182: 4.32 | U182: 2018 | V182: 35 | W182: СВ-110 | X182: СИП | Y182: 1.5 | Z182: 4.06779661
A183: 162 | B183: Реконструкция КТП Пр 332/250 кВА | D183: 25 | E183: ТМ-250 | F183: 0.25 | L183: 1.3 | M183: 0.13 | N183: 1.17 | Q183: 2018 | R183: 33 | S183: ТМГ-250 | T183: 0.25 | Y183: 0 | Z183: 1.101694915
A184: 163 | B184: Реконструкция КТП Пр 314/250 кВА | D184: 25 | E184: ТМ-250 | F184: 0.25 | L184: 1.3 | M184: 0.13 | N184: 1.17 | Q184: 2018 | R184: 33 | S184: ТМГ-250 | T184: 0.25 | Y184: 0 | Z184: 1.101694915
A185: 164 | B185: Реконструкция КТП Пр 210/160 кВА | D185: 25 | E185: ТМ-160 | F185: 0.16 | L185: 1.3 | M185: 0.13 | N185: 1.17 | Q185: 2018 | R185: 33 | S185: ТМГ-160 | T185: 0.16 | Y185: 0 | Z185: 1.101694915
A186: 165 | B186: Реконструкция КТП Сол 106/100 кВА с заменой КТП на 250 кВА | D186: 25 | E186: ТМ-100 | F186: 0.1 | L186: 1.3 | M186: 0.13 | N186: 1.17 | Q186: 2018 | R186: 33 | S186: ТМГ-250 | T186: 0.25 | Y186: 0 | Z186: 1.101694915
A187: 166 | B187: Реконструкция КТП Об 1310/250 кВА | D187: 25 | E187: ТМ-250 | F187: 0.25 | L187: 1.3 | M187: 0.13 | N187: 1.17 | Q187: 2018 | R187: 33 | S187: ТМГ-250 | T187: 0.25 | Y187: 0 | Z187: 1.101694915
A188: 167 | B188: г.Самара | M188: 0 | N188: 0 | Y188: 0 | Z188: 0
A189: 168 | B189: Повышение надежности энергоснабжения г. Самара | H189: 16.27 | J189: АСБ | K189: =L189/7.08 -> 12.85550201 | L189: 91.0169542 | M189: 9.10169542 | N189: 81.91525878 | U189: 2018 | V189: 35 | X189: АПвП | Y189: 12.85550201 | Z189: 77.13301203
A190: 169 | B190: Реконструкция оборудования электросетей Волжского района г.о. Самара | H190: 16.27 | J190: АСБ | K190: 2 | L190: 300.8 | N190: 300.8 | S190: ТРДЦН-63 | T190: 63 | U190: 2018 | V190: 35 | X190: АСК-500 | Y190: 2 | Z190: 254.9152542
A191: 170 | B191: Реконструкция существующей инфраструктуры объектов электрохозяйства в г.о. Самара, в целях обеспечения надежности ЭС спортивного комплексак ЧМ-2018 | H191: 16.27 | J191: АСБ | K191: 13 | L191: 164.02 | M191: 16.402 | N191: 147.618 | U191: 2018 | V191: 35 | X191: АПвП | Y191: 13 | Z191: 139
A192: 171 | B192: г. Сызрань | M192: 0 | N192: 0 | Z192: =L192/1.18 -> 0
A193: 172 | B193: Реконструкция электросетевого оборудования г. Сызрань и Октябрьск | D193: 25 | E193: 3 ТМ-2х400 3ТМ-400 4 ТМ-160 7 ТМ-250 ТМ-100 | F193: 6.09 | H193: 16.27 | I193: Д, ЖБД | J193: А, АС, АСБ | K193: 60.94 | L193: 264.128 | M193: 26.4128 | N193: 237.7152 | Q193: 2018 | R193: 33 | S193: 3 ТМ-2х400 3ТМ-400 3 ТМ-160 9 ТМ-250 ТМ-100 | T193: 6.43 | U193: 2018 | V193: 35 | W193: СВ-95 СВ-110 | X193: СИП АСБ | Y193: 60.94 | Z193: 223.8372881
A194: 173 | B194: г.Тольятти | M194: 0 | N194: 0 | Z194: 0
A195: 174 | B195: Реконструкция КЛ-10кВ от ГПП-1000000 до РП-2080700 | H195: 16.27 | J195: АСБ | K195: 15 | L195: 90 | M195: 9 | N195: 81 | U195: 2018 | V195: 35 | X195: АСБ | Y195: 15 | Z195: 76.27118644
A196: 175 | B196: Реконструкция эл.сетей магистрального освещения ул.Ботанической, Южного шоссе, ул. Коммунальной с установкой новых КТП-10/0,4кВ/160кВА | H196: 16.27 | J196: АСБ | K196: 8.5 | L196: 56.2 | M196: 5.62 | N196: 50.58 | Q196: 2018 | R196: 33 | S196: 4ТМГ-160 | T196: 0.64 | U196: 2018 | V196: 35 | X196: АСБ | Y196: 8.5 | Z196: 47.62711864
A197: 176 | B197: Реконструкция КЛ-6кВ от ТП-252 до ТП-273 и ВЛ-0,4кВ от ТП-249 в Центральном райне г.о. Тольятти | H197: 16.27 | I197: Д, ЖБД | J197: А, АС, АСБ | K197: 1.8 | L197: 7.44 | M197: 0.744 | N197: 6.696 | U197: 2018 | V197: 35 | W197: СВ-95 | X197: СИП АСБ | Y197: 1.8 | Z197: 6.305084746
A198: 177 | B198: Реконструкция КЛ-10кВ; КЛ-0,4кВ с заменой ТП-1000103 в Автозаводском районе г.о. Тольятти | D198: 25 | E198: ТМ-2х630 | F198: 1.26 | H198: 16.27 | J198: АСБ | K198: 20.1 | L198: 132.9 | M198: 13.29 | N198: 119.61 | Q198: 2018 | R198: 33 | S198: ТМГ-2х630 | T198: 1.26 | U198: 2018 | V198: 35 | X198: АСБ | Y198: 20.1 | Z198: 112.6271186
A199: 178 | B199: Реконструкция схем электроснабжения с перекладкой ВЛ-6кВ, КЛ-6;10; 0,4кВ и заменой ТП для обеспечения надежности электроснабжения г.о. Жигулевск | D199: 25 | E199: 2 ТМ-2х400 | F199: 1.6 | H199: 16.27 | I199: Д, ЖБД | J199: А, АС, АСБ | K199: 9.7 | L199: 106.4 | M199: 10.64 | N199: 95.76 | Q199: 2018 | R199: 33 | S199: 2 ТМГ-2х400 | T199: 1.6 | U199: 2018 | V199: 35 | W199: СВ-95 | X199: СИП АСБ | Y199: 9.7 | Z199: 90.16949153
A200: 179 | B200: ПИР Реконструкция электроснабжения с.Подстепки | L200: 22.2 | M200: =L200 -> 22.2 | Y200: 0 | Z200: 18.81355932
A201: 180 | B201: Реконструкция ВЛ-0,4 кВ от КТП Мус 1614/630 кВА | H201: 16.27 | I201: Д, ЖБД | J201: А, АС | K201: 1.31 | L201: 4.19 | M201: 0.419 | N201: 3.771 | U201: 2018 | V201: 35 | W201: СВ-95 | X201: СИП | Y201: 1.31 | Z201: 3.550847458
A202: 181 | B202: Реконструкция ВЛ-0,4 кВ от КТП-245/250 кВА с заменой КТП | D202: 25 | E202: ТМ-250 | F202: 0.25 | H202: 16.27 | I202: Д, ЖБД | J202: А, АС | K202: 1.5 | L202: 6.1 | M202: 0.61 | N202: 5.49 | Q202: 2018 | R202: 33 | S202: ТМГ-250 | T202: 0.25 | U202: 2018 | V202: 35 | W202: СВ-95 | X202: СИП | Y202: 1.5 | Z202: 5.169491525
A203: 182 | B203: Реконструкция ВЛ-0,4кВ от КТП-19/400 кВА с заменой КТП | D203: 25 | E203: ТМ-400 | F203: 0.4 | H203: 16.27 | I203: Д, ЖБД | J203: А, АС | K203: 1.3 | L203: 5.76 | M203: 0.576 | N203: 5.184 | Q203: 2018 | R203: 33 | S203: ТМГ-400 | T203: 0.4 | U203: 2018 | V203: 35 | W203: СВ-95 | X203: СИП | Y203: 1.3 | Z203: 4.881355932
A204: 183 | B204: Реконструкция ВЛ-0,4кВ КТП 1280315 | H204: 16.27 | I204: Д, ЖБД | J204: А, АС | K204: 0.4 | L204: 1.28 | M204: 0.128 | N204: 1.152 | U204: 2018 | V204: 35 | W204: СВ-95 | X204: СИП | Y204: 0.4 | Z204: 1.084745763
... 100 more rows
